fUSD/lending_fUSD_20260617
["ID","MTS","AMOUNT","RATE_DAILY","PERIOD"]
[425314811,1781694657000,-422.22586421,0.00029138,7]
[425314814,1781694657000,-552.02017138,0.00029138,7]
[425314816,1781694657000,-217.74934537,0.00029138,7]
[425314818,1781694657000,-165.71292312,0.00029138,7]
[425314846,1781694657000,-396.407254,0.00029216,7]
[425314827,1781694657000,-223.18085528,0.00029138,7]
[425314844,1781694657000,-3754.95125807,0.00029216,2]
[425314883,1781694657000,-447.35888299,0.00029706,7]
[425314880,1781694657000,-688.26938845,0.00029706,7]
[425314884,1781694657000,-658.35448893,0.00029706,7]
[425314881,1781694657000,-265.84282166,0.00029706,7]
[425314885,1781694657000,-229.71518198,0.00029706,7]
[425314888,1781694657000,-418.8938871,0.00029706,7]
[425314889,1781694657000,-453.78845357,0.00029706,7]
[425314895,1781694657000,-457.21643915,0.00029706,7]
[425314892,1781694657000,-438.80987166,0.00029706,7]
[425314899,1781694657000,-563.54734855,0.00029706,7]
[425314897,1781694657000,-420.99143257,0.00029706,7]
[425314896,1781694657000,-635.89669674,0.00029706,7]
[425314898,1781694657000,-464.74727253,0.00029706,7]
[425314894,1781694657000,-693.44394772,0.00029706,7]
[425314890,1781694657000,-203.18865755,0.00029706,7]
[425314893,1781694657000,-429.70904658,0.00029706,7]
[425314891,1781694657000,-472.33858618,0.00029706,7]
[425314901,1781694657000,-428.51062644,0.00029706,7]
[425314900,1781694657000,-693.12986266,0.00029706,7]
[425314904,1781694657000,-441.74981821,0.00029706,7]
[425314906,1781694657000,-880.34493794,0.00029706,7]
[425314909,1781694657000,-200.0,0.00029706,2]
[425314905,1781694657000,-461.37671432,0.00029706,7]
[425314903,1781694657000,-427.45002542,0.00029706,7]
[425314908,1781694657000,-426.30980553,0.00029706,7]
[425314907,1781694657000,-472.03898078,0.00029706,7]
[425314841,1781694657000,-500.0,0.00029143,7]
[425314882,1781694657000,-405.25800553,0.00029706,7]
[425314878,1781694657000,-161.17536081,0.00029706,7]
[425314902,1781694657000,-386.55591139,0.00029706,7]
[425314886,1781694657000,-424.25142858,0.00029706,7]
[425314875,1781694657000,-310.0,0.000297,2]
[425314853,1781694657000,-700.0,0.00029239,2]
[425314854,1781694657000,-26864.43140295,0.00029264,7]
[425314851,1781694657000,-383.42,0.00029228,2]
[425314861,1781694657000,-2355.0,0.00029272,3]
[425314858,1781694657000,-230.362583,0.00029264,7]
[425314860,1781694657000,-230.362583,0.00029264,7]
[425314856,1781694657000,-151.0,0.00029264,7]
[425314857,1781694657000,-230.362583,0.00029264,7]
[425314859,1781694657000,-230.362583,0.00029264,7]
[425314863,1781694657000,-150.0,0.00029372,2]
[425314871,1781694657000,-1286.01003347,0.00029648,2]
[425314870,1781694657000,-273.0,0.00029612,2]
[425314855,1781694657000,-151.0,0.00029264,7]
[425314862,1781694657000,-2000.0,0.000293,2]
[425314877,1781694657000,-448.97789428,0.00029706,7]
[425314864,1781694657000,-239.63353567,0.00029518,4]
[425314887,1781694657000,-446.69324162,0.00029706,7]
[425314879,1781694657000,-336.22379329,0.00029706,7]
[425314876,1781694657000,-237.47866217,0.00029706,7]
[425314872,1781694657000,-1943.3,0.000297,7]
[425314865,1781694657000,-152.62033986,0.0002954,2]
[425314852,1781694657000,-273.0,0.00029237,2]
[425314874,1781694657000,-316.0,0.000297,2]
[425314873,1781694657000,-2000.0,0.000297,2]
[425314867,1781694657000,-597.17105034,0.00029589,12]
[425314869,1781694657000,-350.0,0.00029601,30]
[425314868,1781694657000,-159.67155246,0.000296,7]
[425314866,1781694657000,-3000.0,0.00029589,12]
[425314949,1781694658000,-245.70421563,0.00029707,7]
[425314927,1781694658000,-247.21875952,0.00029707,7]
[425314929,1781694658000,-233.97262355,0.00029707,7]
[425314933,1781694658000,-165.64447569,0.00029707,7]
[425314934,1781694658000,-226.39028697,0.00029707,7]
[425314938,1781694658000,-450.95100998,0.00029707,7]
[425314936,1781694658000,-697.43743372,0.00029707,7]
[425314937,1781694658000,-311.31878383,0.00029707,7]
[425314939,1781694658000,-451.59264128,0.00029707,7]
[425314940,1781694658000,-377.62593374,0.00029707,7]
[425314943,1781694658000,-466.04692639,0.00029707,7]
[425314942,1781694658000,-633.33879631,0.00029707,7]
[425314953,1781694658000,-331.42584623,0.00029707,7]
[425314948,1781694658000,-435.49869073,0.00029707,7]
[425314951,1781694658000,-222.28804575,0.00029707,7]
[425314946,1781694658000,-736.02689517,0.00029707,7]
[425314945,1781694658000,-433.37372534,0.00029707,7]
[425314947,1781694658000,-427.75422277,0.00029707,5]
[425314932,1781694658000,-405.39963185,0.00029707,7]
[425314941,1781694658000,-464.02589543,0.00029707,7]
[425314944,1781694658000,-426.66196277,0.00029707,7]
[425314914,1781694658000,-297.95197213,0.00029707,7]
[425314930,1781694658000,-174.08276585,0.00029707,7]
[425314952,1781694658000,-178.6763225,0.00029707,2]
[425314911,1781694658000,-689.61066864,0.00029707,7]
[425314910,1781694658000,-694.64966804,0.00029707,7]
[425314912,1781694658000,-511.65017508,0.00029707,7]
[425314918,1781694658000,-304.16737871,0.00029707,7]
[425314913,1781694658000,-336.70936977,0.00029707,7]
[425314915,1781694658000,-463.12723611,0.00029707,7]
[425314923,1781694658000,-623.75017804,0.00029707,7]
[425314919,1781694658000,-232.87883147,0.00029707,7]
[425314917,1781694658000,-436.20913464,0.00029707,7]
[425314922,1781694658000,-407.91833247,0.00029707,7]
[425314920,1781694658000,-151.22218563,0.00029707,7]
[425314921,1781694658000,-707.93516958,0.00029707,7]
[425314916,1781694658000,-159.98959902,0.00029707,2]
[425314925,1781694658000,-440.98401077,0.00029707,7]
[425314935,1781694658000,-165.49040856,0.00029707,2]
[425314926,1781694658000,-436.64644692,0.00029707,7]
[425314924,1781694658000,-499.05890353,0.00029707,7]
[425314928,1781694658000,-498.44971249,0.00029707,7]
[425314931,1781694658000,-697.57752605,0.00029707,7]
[425314954,1781694658000,-437.39317523,0.00029707,7]
[425314975,1781694658000,-160.3876876,0.00029707,7]
[425314956,1781694658000,-622.57095228,0.00029707,2]
[425314990,1781694658000,-500.0,0.00029749,60]
[425314983,1781694658000,-388.94952594,0.00029707,7]
[425314984,1781694658000,-673.27380877,0.0002972,7]
[425314950,1781694658000,-429.30944176,0.00029707,7]
[425314989,1781694658000,-500.0,0.00029749,120]
[425314979,1781694658000,-494.58590763,0.00029707,7]
[425314981,1781694658000,-491.24072961,0.00029707,7]
[425314985,1781694658000,-857.0868914,0.00029745,2]
[425314987,1781694658000,-229.9088426,0.00029745,2]
[425314986,1781694658000,-22506.3932074,0.00029745,2]
[425314993,1781694658000,-670.58624095,0.00029779,2]
[425314992,1781694658000,-599.60298507,0.00029779,2]
[425314994,1781694658000,-1077.91,0.00029828,8]
[425314991,1781694658000,-151.0,0.0002975,2]
[425314996,1781694658000,-2703.64,0.00029872,2]
[425314998,1781694658000,-350.0,0.00029874,14]
[425314999,1781694658000,-200.0,0.00029878,2]
[425314995,1781694658000,-164.08,0.00029828,8]
[425314997,1781694658000,-350.0,0.00029874,14]
[425314988,1781694658000,-3140.4645867,0.00029745,2]
[425314980,1781694658000,-300.79079754,0.00029707,7]
[425314982,1781694658000,-619.14813489,0.00029707,7]
[425314971,1781694658000,-471.01020031,0.00029707,7]
[425314966,1781694658000,-727.6950559,0.00029707,7]
[425314955,1781694658000,-472.79162143,0.00029707,5]
[425314957,1781694658000,-452.79528203,0.00029707,2]
[425314972,1781694658000,-506.71582238,0.00029707,7]
[425314959,1781694658000,-412.98139069,0.00029707,7]
[425314964,1781694658000,-468.43447595,0.00029707,7]
[425314960,1781694658000,-450.86236193,0.00029707,2]
[425314965,1781694658000,-410.45976411,0.00029707,7]
[425314961,1781694658000,-201.37116919,0.00029707,7]
[425314962,1781694658000,-227.38575425,0.00029707,7]
[425314958,1781694658000,-498.83860868,0.00029707,2]
[425314968,1781694658000,-472.21764709,0.00029707,7]
[425314978,1781694658000,-461.90662617,0.00029707,7]
[425314969,1781694658000,-159.94155698,0.00029707,7]
[425314967,1781694658000,-411.32990262,0.00029707,2]
[425314970,1781694658000,-350.09250233,0.00029707,7]
[425314973,1781694658000,-404.66423184,0.00029707,7]
[425314977,1781694658000,-392.23222405,0.00029707,7]
[425314976,1781694658000,-458.43204737,0.00029707,7]
[425314974,1781694658000,-712.4744517,0.00029707,7]
[425314963,1781694658000,-446.36171057,0.00029707,7]
[425315007,1781694659000,-152.0,0.00029962,30]
[425315008,1781694659000,-261.0,0.00029962,30]
[425315005,1781694659000,-158.0,0.00029962,30]
[425315003,1781694659000,-154.0,0.00029962,30]
[425315004,1781694659000,-155.0,0.00029962,30]
[425315000,1781694659000,-80540.70262416,0.000299,2]
[425315011,1781694659000,-155.0,0.00029963,30]
[425315002,1781694659000,-168.15625109,0.00029949,2]
[425315012,1781694659000,-151.0,0.00029963,30]
[425315001,1781694659000,-42614.77524039,0.000299,2]
[425315009,1781694659000,-157.0,0.00029962,30]
[425315010,1781694659000,-169.24411393,0.00029963,2]
[425315006,1781694659000,-237.0,0.00029962,30]
[425315023,1781694659000,-11013.54932532,0.0003,7]
[425315024,1781694659000,-17958.95384832,0.0003,8]
[425315016,1781694659000,-153.0,0.00029963,30]
[425315022,1781694659000,-11013.54932532,0.0003,7]
[425315017,1781694659000,-153.0,0.00029963,30]
[425315015,1781694659000,-535.0,0.00029963,30]
[425315014,1781694659000,-485.0,0.00029963,30]
[425315019,1781694659000,-273.0,0.00029986,2]
[425315018,1781694659000,-500.0,0.00029965,7]
[425315025,1781694659000,-2500.0,0.0003,2]
[425315021,1781694659000,-500.0,0.00029999,7]
[425315020,1781694659000,-500.0,0.00029999,120]
[425315026,1781694659000,-34.08793651,0.0003,3]
[425315013,1781694659000,-155.0,0.00029963,30]
[425315027,1781694660000,-775.67129044,0.0003,3]
[425315028,1781694660000,-15.92421661,0.0003,3]
[425315029,1781694660000,-420.20378339,0.0003,13]
[425315060,1781694661000,-956.7951572,0.000301,2]
[425315054,1781694661000,-2000.0,0.00030029,2]
[425315051,1781694661000,-152.0,0.00030016,120]
[425315049,1781694661000,-934.76,0.0002997,7]
[425315048,1781694661000,-1000.0,0.000297,2]
[425315050,1781694661000,-82.79621661,0.0003,13]
[425315045,1781694661000,-795.64,0.00028194,7]
[425315044,1781694661000,-795.64,0.00028033,30]
[425315042,1781694661000,-795.64,0.00027711,7]
[425315052,1781694661000,-581.38764277,0.00030029,7]
[425315047,1781694661000,-396.407254,0.00029216,7]
[425315046,1781694661000,-157.157292,0.00029216,7]
[425315038,1781694661000,-1090.47355997,0.0002494,5]
[425315041,1781694661000,-795.64,0.0002755,30]
[425315036,1781694661000,-934.76,0.00024657,7]
[425315034,1781694661000,-201.6101,0.00021743,2]
[425315037,1781694661000,-562.52644003,0.0002494,5]
[425315040,1781694661000,-12901.53,0.00027397,10]
[425315039,1781694661000,-934.76,0.00027313,7]
[425315055,1781694661000,-179.6612748,0.0003003,2]
[425315035,1781694661000,-934.76,0.00022,2]
[425315033,1781694661000,-150.0,0.00020868,2]
[425315031,1781694661000,-526.06,0.00017558,2]
[425315032,1781694661000,-157.48,0.00017761,2]
[425315030,1781694661000,-172.01002794,0.000149,2]
[425315053,1781694661000,-1009.9638,0.00030029,2]
[425315064,1781694661000,-500.0,0.00030129,120]
[425315043,1781694661000,-795.64,0.00027872,2]
[425315059,1781694661000,-956.7951572,0.000301,2]
[425315056,1781694661000,-188.98085337,0.00030037,2]
[425315084,1781694661000,-601384.15501464,0.0003013,7]
[425315082,1781694661000,-58115.03601397,0.0003013,7]
[425315085,1781694661000,-41815.68357166,0.0003013,7]
[425315081,1781694661000,-323.67613501,0.00030129,7]
[425315083,1781694661000,-731126.81783704,0.0003013,7]
[425315079,1781694661000,-500.0,0.00030129,7]
[425315074,1781694661000,-500.0,0.00030129,7]
[425315077,1781694661000,-500.0,0.00030129,7]
[425315076,1781694661000,-500.0,0.00030129,7]
[425315075,1781694661000,-500.0,0.00030129,7]
[425315073,1781694661000,-500.0,0.00030129,7]
[425315080,1781694661000,-500.0,0.00030129,7]
[425315072,1781694661000,-500.0,0.00030129,7]
[425315057,1781694661000,-500.0,0.0003009,2]
[425315071,1781694661000,-500.0,0.00030129,7]
[425315078,1781694661000,-500.0,0.00030129,7]
[425315068,1781694661000,-500.0,0.00030129,7]
[425315067,1781694661000,-500.0,0.00030129,7]
[425315070,1781694661000,-500.0,0.00030129,7]
[425315058,1781694661000,-949.90443279,0.000301,2]
[425315063,1781694661000,-151.0,0.00030127,7]
[425315069,1781694661000,-500.0,0.00030129,7]
[425315065,1781694661000,-210.82452757,0.00030129,120]
[425315061,1781694661000,-186.67055344,0.0003012,3]
[425315062,1781694661000,-151.0,0.00030127,7]
[425315066,1781694661000,-500.0,0.00030129,7]
[425315086,1781694662000,-512.63324228,0.0003013,7]
[425315088,1781694662000,-1473.33721193,0.0003013,7]
[425315087,1781694662000,-503.9771659,0.0003013,7]
[425315090,1781694662000,-409.0,0.0002,2]
[425315089,1781694662000,-1219.19352263,0.0003013,7]
[425315092,1781694662000,-1203.50417643,0.0003013,7]
[425315094,1781694662000,-10513.2434927,0.0003013,7]
[425315095,1781694662000,-1594.53541537,0.0003013,7]
[425315093,1781694662000,-601.75778796,0.0003013,7]
[425315096,1781694662000,-1980.07558536,0.0003013,7]
[425315091,1781694662000,-1701.05105697,0.0003013,7]
[425315097,1781694984000,-500.0,0.00014997,2]
[425315098,1781695040000,-500.0,0.00014898,2]
[425315099,1781695062000,-500.0,0.00014996,2]
[425315100,1781695113000,-150.0,0.00014995,2]
[425315101,1781695168000,-500.0,0.00014995,2]
[425315103,1781695220000,-447.0,0.00014995,2]
[425315104,1781695242000,-53.0,0.00014995,2]
[425315105,1781695296000,-150.0,0.00014993,2]
[425315106,1781695349000,-500.0,0.00014994,2]
[425315107,1781695402000,-207.0,0.00014993,2]
[425315111,1781695612000,-500.0,0.00037922,60]
[425315110,1781695612000,-500.0,0.00037922,30]
[425315109,1781695612000,-500.0,0.00037922,30]
[425315108,1781695612000,-500.0,0.00037922,60]
[425315113,1781695613000,-614.46,0.00037922,30]
[425315112,1781695613000,-500.0,0.00037922,90]
[425315114,1781695613000,-500.0,0.00037922,30]
[425315118,1781695613000,-500.0,0.00037922,60]
[425315116,1781695613000,-500.0,0.00037922,30]
[425315117,1781695613000,-157.0,0.00037922,30]
[425315115,1781695613000,-500.0,0.00037922,30]
[425315127,1781695614000,-500.0,0.00037922,90]
[425315126,1781695614000,-500.0,0.00037922,90]
[425315125,1781695614000,-500.0,0.00037922,90]
[425315124,1781695614000,-500.0,0.00037922,90]
[425315123,1781695614000,-500.0,0.00037922,30]
[425315122,1781695614000,-500.0,0.00037922,30]
[425315121,1781695614000,-500.0,0.00037922,90]
[425315120,1781695614000,-564.20942619,0.00037922,90]
[425315119,1781695614000,-500.0,0.00037922,30]
[425315130,1781695615000,-500.0,0.00037922,90]
[425315128,1781695615000,-500.0,0.00037922,90]
[425315129,1781695615000,-500.0,0.00037922,90]
[425315131,1781695615000,-500.0,0.00037922,90]
[425315134,1781695615000,-500.0,0.00037922,90]
[425315133,1781695615000,-500.0,0.00037922,90]
[425315137,1781695615000,-500.0,0.00037922,90]
[425315135,1781695615000,-500.0,0.00037922,90]
[425315136,1781695615000,-500.0,0.00037922,90]
[425315132,1781695615000,-500.0,0.00037922,90]
[425315138,1781695616000,-500.0,0.00037922,90]
[425315139,1781695616000,-500.0,0.00037922,90]
[425315140,1781695616000,-500.0,0.00037922,90]
[425315141,1781695616000,-339.68,0.00037922,90]
[425315142,1781695616000,-500.0,0.00037922,30]
[425315144,1781695616000,-500.0,0.00037922,90]
[425315145,1781695616000,-500.0,0.00037922,90]
[425315146,1781695616000,-500.0,0.00037922,30]
[425315147,1781695616000,-500.0,0.00037922,30]
[425315148,1781695616000,-500.0,0.00037922,30]
[425315143,1781695616000,-500.0,0.00037922,30]
[425315153,1781695617000,-314.0,0.00037922,30]
[425315149,1781695617000,-500.0,0.00037922,30]
[425315150,1781695617000,-500.0,0.00037922,30]
[425315151,1781695617000,-500.0,0.00037922,30]
[425315152,1781695617000,-500.0,0.00037922,30]
[425315154,1781695617000,-500.0,0.00037922,60]
[425315159,1781695617000,-500.0,0.00037922,60]
[425315156,1781695617000,-500.0,0.00037922,30]
[425315157,1781695617000,-500.0,0.00037922,60]
[425315158,1781695617000,-500.0,0.00037922,60]
[425315160,1781695617000,-500.0,0.00037922,30]
[425315161,1781695617000,-500.0,0.00037922,30]
[425315155,1781695617000,-500.0,0.00037922,60]
[425315166,1781695618000,-500.0,0.00037922,60]
[425315162,1781695618000,-500.0,0.00037922,30]
[425315163,1781695618000,-343.38,0.00037922,30]
[425315164,1781695618000,-500.0,0.00037922,30]
[425315165,1781695618000,-500.0,0.00037922,60]
[425315167,1781695618000,-500.0,0.00037922,60]
[425315172,1781695618000,-500.0,0.00037922,30]
[425315169,1781695618000,-500.0,0.00037922,90]
[425315170,1781695618000,-500.0,0.00037922,30]
[425315171,1781695618000,-500.0,0.00037922,30]
[425315174,1781695618000,-500.0,0.00037922,90]
[425315173,1781695618000,-157.0,0.00037922,30]
[425315168,1781695618000,-500.0,0.00037922,60]
[425315175,1781695619000,-500.0,0.00037922,90]
[425315176,1781695619000,-500.0,0.00037922,90]
[425315177,1781695619000,-500.0,0.00037922,90]
[425315178,1781695619000,-500.0,0.00037922,90]
[425315179,1781695619000,-500.0,0.00037922,90]
[425315180,1781695619000,-500.0,0.00037922,90]
[425315182,1781695619000,-500.0,0.00037922,90]
[425315183,1781695619000,-500.0,0.00037922,90]
[425315184,1781695619000,-500.0,0.00037922,90]
[425315185,1781695619000,-500.0,0.00037922,90]
[425315186,1781695619000,-500.0,0.00037922,90]
[425315187,1781695619000,-500.0,0.00037922,90]
[425315181,1781695619000,-500.0,0.00037922,90]
[425315188,1781695620000,-500.0,0.00037922,90]
[425315189,1781695620000,-500.0,0.00037922,90]
[425315192,1781695620000,-500.0,0.00037922,90]
[425315190,1781695620000,-500.0,0.00037922,90]
[425315191,1781695620000,-339.68,0.00037922,90]
[425315193,1781695620000,-500.0,0.00037922,30]
[425315198,1781695620000,-500.0,0.00037922,30]
[425315195,1781695620000,-500.0,0.00037922,30]
[425315200,1781695620000,-500.0,0.00037922,90]
[425315199,1781695620000,-500.0,0.00037922,90]
[425315194,1781695620000,-500.0,0.00037922,30]
[425315196,1781695620000,-157.0,0.00037922,30]
[425315197,1781695620000,-500.0,0.00037922,30]
[425315201,1781695621000,-500.0,0.00037922,90]
[425315202,1781695621000,-446.48150701,0.00037922,60]
[425315203,1781695621000,-500.0,0.00037922,30]
[425315204,1781695621000,-500.0,0.00037922,30]
[425315206,1781695621000,-570.32770175,0.00037922,30]
[425315205,1781695621000,-500.0,0.00037922,30]
[425315208,1781695621000,-500.0,0.00037922,90]
[425315209,1781695621000,-500.0,0.00037922,30]
[425315210,1781695621000,-500.0,0.00037922,30]
[425315211,1781695621000,-500.0,0.00037922,30]
[425315212,1781695621000,-157.0,0.00037922,30]
[425315213,1781695621000,-500.0,0.00037922,60]
[425315207,1781695621000,-500.0,0.00037922,45]
[425315214,1781695622000,-500.0,0.00037922,60]
[425315215,1781695622000,-500.0,0.00037922,60]
[425315216,1781695622000,-487.69628726,0.00037922,60]
[425315217,1781695622000,-552.48,0.00037922,90]
[425315218,1781695622000,-552.48,0.00037922,90]
[425315219,1781695622000,-552.48,0.00037922,90]
[425315221,1781695622000,-552.48,0.00037922,90]
[425315222,1781695622000,-552.48,0.00037922,90]
[425315223,1781695622000,-552.48,0.00037922,90]
[425315224,1781695622000,-552.48,0.00037922,90]
[425315225,1781695622000,-552.48,0.00037922,90]
[425315226,1781695622000,-552.48,0.00037922,90]
[425315220,1781695622000,-552.48,0.00037922,90]
[425315227,1781695623000,-552.48,0.00037922,90]
[425315228,1781695623000,-552.48,0.00037922,90]
[425315229,1781695623000,-552.48,0.00037922,90]
[425315230,1781695623000,-552.48,0.00037922,90]
[425315231,1781695623000,-552.48,0.00037922,90]
[425315232,1781695623000,-552.48,0.00037922,90]
[425315233,1781695623000,-552.48,0.00037922,90]
[425315235,1781695623000,-552.48,0.00037922,90]
[425315236,1781695623000,-552.48,0.00037922,90]
[425315237,1781695623000,-552.48,0.00037922,90]
[425315238,1781695623000,-552.48,0.00037922,90]
[425315239,1781695623000,-552.48,0.00037922,90]
[425315240,1781695623000,-552.48,0.00037922,90]
[425315234,1781695623000,-552.48,0.00037922,90]
[425315245,1781695624000,-500.0,0.00037922,30]
[425315241,1781695624000,-500.0,0.00037922,30]
[425315242,1781695624000,-500.0,0.00037922,30]
[425315243,1781695624000,-500.0,0.00037922,30]
[425315244,1781695624000,-157.0,0.00037922,30]
[425315246,1781695624000,-500.0,0.00037922,30]
[425315249,1781695624000,-500.0,0.00037922,60]
[425315248,1781695624000,-343.38,0.00037922,30]
[425315252,1781695624000,-100000.0,0.00037922,30]
[425315251,1781695624000,-75222.0,0.00037922,30]
[425315247,1781695624000,-500.0,0.00037922,30]
[425315253,1781695624000,-100000.0,0.00037922,30]
[425315250,1781695624000,-500.0,0.00037922,60]
[425315254,1781695625000,-1126.0,0.00037922,30]
[425315255,1781695625000,-100000.0,0.00037922,30]
[425315257,1781695625000,-1240257.23634522,0.00037922,30]
[425315258,1781695625000,-50000.0,0.00037922,35]
[425315256,1781695625000,-100000.0,0.00037922,30]
[425315260,1781695625000,-50000.0,0.00037922,37]
[425315261,1781695625000,-50000.0,0.00037922,38]
[425315262,1781695625000,-500.0,0.00037922,60]
[425315263,1781695625000,-425.35947608,0.00037922,60]
[425315259,1781695625000,-50000.0,0.00037922,33]
[425315268,1781695626000,-500.0,0.00037922,30]
[425315264,1781695626000,-500.0,0.00037922,30]
[425315265,1781695626000,-500.0,0.00037922,30]
[425315266,1781695626000,-500.0,0.00037922,30]
[425315267,1781695626000,-500.0,0.00037922,30]
[425315269,1781695626000,-500.0,0.00037922,30]
[425315272,1781695626000,-500.0,0.00037922,30]
[425315271,1781695626000,-500.0,0.00037922,30]
[425315273,1781695626000,-500.0,0.00037922,30]
[425315274,1781695626000,-500.0,0.00037922,30]
[425315275,1781695626000,-500.0,0.00037922,30]
[425315276,1781695626000,-500.0,0.00037922,30]
[425315270,1781695626000,-500.0,0.00037922,30]
[425315281,1781695627000,-500.0,0.00037922,30]
[425315277,1781695627000,-500.0,0.00037922,30]
[425315278,1781695627000,-500.0,0.00037922,30]
[425315279,1781695627000,-500.0,0.00037922,30]
[425315280,1781695627000,-500.0,0.00037922,30]
[425315282,1781695627000,-500.0,0.00037922,30]
[425315285,1781695627000,-496.34,0.00037922,30]
[425315284,1781695627000,-294.88705511,0.00037922,30]
[425315289,1781695627000,-496.34,0.00037922,30]
[425315286,1781695627000,-496.34,0.00037922,30]
[425315287,1781695627000,-496.34,0.00037922,30]
[425315288,1781695627000,-496.34,0.00037922,30]
[425315283,1781695627000,-387.75862972,0.00037922,30]
[425315290,1781695628000,-496.34,0.00037922,30]
[425315291,1781695628000,-496.34,0.00037922,30]
[425315292,1781695628000,-496.34,0.00037922,30]
[425315293,1781695628000,-496.34,0.00037922,30]
[425315294,1781695628000,-496.34,0.00037922,30]
[425315295,1781695628000,-496.34,0.00037922,30]
[425315297,1781695628000,-496.34,0.00037922,30]
[425315298,1781695628000,-496.34,0.00037922,30]
[425315299,1781695628000,-496.34,0.00037922,30]
[425315300,1781695628000,-496.34,0.00037922,30]
[425315301,1781695628000,-496.34,0.00037922,30]
[425315302,1781695628000,-496.34,0.00037922,30]
[425315296,1781695628000,-496.34,0.00037922,30]
[425315303,1781695629000,-496.34,0.00037922,30]
[425315304,1781695629000,-496.34,0.00037922,30]
[425315305,1781695629000,-496.34,0.00037922,30]
[425315307,1781695629000,-496.34,0.00037922,30]
[425315306,1781695629000,-496.34,0.00037922,30]
[425315308,1781695629000,-496.34,0.00037922,30]
[425315312,1781695629000,-496.34,0.00037922,30]
[425315310,1781695629000,-496.34,0.00037922,30]
[425315309,1781695629000,-496.34,0.00037922,30]
[425315315,1781695629000,-496.34,0.00037922,30]
[425315314,1781695629000,-496.34,0.00037922,30]
[425315313,1781695629000,-496.34,0.00037922,30]
[425315311,1781695629000,-496.34,0.00037922,30]
[425315327,1781695630000,-496.34,0.00037922,30]
[425315316,1781695630000,-496.34,0.00037922,30]
[425315317,1781695630000,-496.34,0.00037922,30]
[425315318,1781695630000,-496.34,0.00037922,30]
[425315328,1781695630000,-496.34,0.00037922,30]
[425315321,1781695630000,-496.34,0.00037922,30]
[425315319,1781695630000,-496.34,0.00037922,30]
[425315323,1781695630000,-496.34,0.00037922,30]
[425315324,1781695630000,-496.34,0.00037922,30]
[425315325,1781695630000,-496.34,0.00037922,30]
[425315326,1781695630000,-496.34,0.00037922,30]
[425315322,1781695630000,-496.34,0.00037922,30]
[425315320,1781695630000,-496.34,0.00037922,30]
[425315334,1781695631000,-500.0,0.00037922,60]
[425315329,1781695631000,-496.71,0.00037922,30]
[425315330,1781695631000,-1361.0,0.00037922,30]
[425315331,1781695631000,-523.01925351,0.00037922,60]
[425315332,1781695631000,-529.69274444,0.00037922,30]
[425315333,1781695631000,-500.0,0.00037922,60]
[425315337,1781695631000,-504.89270904,0.00037922,60]
[425315336,1781695631000,-500.0,0.00037922,60]
[425315341,1781695631000,-1126.0,0.00037922,30]
[425315340,1781695631000,-1126.0,0.00037922,30]
[425315335,1781695631000,-500.0,0.00037922,60]
[425315338,1781695631000,-345.24343324,0.00037922,90]
[425315339,1781695631000,-457.57709727,0.00037922,30]
[425315342,1781695632000,-602.4,0.00037922,60]
[425315343,1781695632000,-602.4,0.00037922,60]